Cogmind - Beta 13 @@@ ROGUE MODE // 2024.04.19 @ 22:47:58 Player: Cwaftwer Result: Destroyed by D-53 Grenadier with Mini Grenade Launcher Performance ------------- Evolutions (0) 0 Regions Visited (2) 400 Robots Destroyed (23) 115 Value Destroyed (333) 333 Prototype IDs (2) 40 Alien Tech Used (0) 0 Bonus (0) 0 TOTAL SCORE: 888 Bonus ------- None Cogmind --------- Core Integrity 0/250 Matter 279/300 Energy 250/250 System Corruption 2% Temperature Cool (12) Movement Core (950) Ox18 Location -10/Mines Parts ------- > --- POWER (1) -------- Ion Engine > --- PROPULSION (2) --- (None) > --- UTILITY (2) ------ High-capacity Storage Unit > --- WEAPON (2) ------- Slug Cannon Grenade Launcher > --- INVENTORY (20) --- Ion Engine Ion Engine Improved Heat Sink Large Battery (200) High-capacity Matter Pod (185) Light Armor Plating Light Armor Plating Light Assault Rifle Light Assault Rifle Mining Claw Peak State ------------ > --- POWER ------------ Ion Engine > --- PROPULSION ------- Light Treads Compact Wheel > --- UTILITY ---------- High-capacity Storage Unit Seismic Detector > --- WEAPON ----------- Light Assault Rifle Slug Cannon > --- INVENTORY -------- Ion Engine Ion Engine Improved Heat Sink Large Battery High-capacity Matter Pod Light Armor Plating Light Armor Plating Light Armor Plating Light Assault Rifle Light Assault Rifle Grenade Launcher Mining Claw [Rating: 11] Favorites ----------- Power Ion Engine Engine Ion Engine Propulsion Light Treads Treads Light Treads Wheel Compact Wheel Utility High-capacity Storage Unit Device Seismic Detector Storage High-capacity Storage Unit Protection Light Armor Plating Weapon Light Assault Rifle Ballistic Gun Light Assault Rifle Ballistic Cannon Slug Cannon Launcher Grenade Launcher Slashing Weapon Mining Claw Build | -11 -10 -10 ------- Run | Yrd Mat Min Slots Evolved . | . . . Power . | . . . Propulsion . | . . . Utility . | . . . Weapon . | . . . Parts Attached 28 | 6 13 9 Power 2 | 1 1 . Engine 2 | 1 1 . Core . | . . . Reactor . | . . . Propulsion 8 | 2 4 2 Treads 7 | 2 3 2 Leg . | . . . Wheel 1 | . 1 . Hover . | . . . Flight . | . . . Utility 9 | 2 4 3 Device 3 | 1 1 1 Storage 3 | 1 2 . Processor . | . . . Hackware . | . . . Protection 3 | . 1 2 Artifact . | . . . Weapon 9 | 1 4 4 Energy Gun . | . . . Energy Cannon . | . . . Ballistic Gun 6 | 1 3 2 Ballistic Cannon 1 | . . 1 Launcher 1 | . . 1 Special Weapon . | . . . Impact Weapon . | . . . Slashing Weapon 1 | . 1 . Piercing Weapon . | . . . Special Melee Weapon . | . . . Unidentified Prototypes . | . . . Parts Lost 8 | . . 8 Power . | . . . Propulsion 3 | . . 3 Utility 3 | . . 3 Weapon 2 | . . 2 Highest Loss Streak 5 | . . 5 To Critical Strikes . | . . . Average Slot Usage (%) 97 | . 95 99 Engine 14 | . 14 14 Treads 23 | . 23 24 Wheel 4 | . 4 3 Device 6 | . 2 13 Storage 14 | . 14 14 Protection 7 | . 11 . Ballistic Gun 20 | . 23 15 Ballistic Cannon 4 | . . 11 Naked Turns . | . . . Heaviest Build 55 | 11 51 55 Greatest Support 40 | 40 40 40 Greatest Overweight (x) 3 | . 3 3 Average Overweight (x) 1 | . 1 1 Largest Inventory Capacity 20 | 8 20 20 Average Capacity 17 | 7 17 20 Most Carried 13 | 3 12 13 Average Carried 9 | 1 9 11 Final Capacity 20 | 8 20 20 Final Carried 11 | 2 11 10 Class Distribution -------------------- 100% | Mutant Dominant Class ---------------- Mutant | -10/Materials Mutant | -10/Mines Resources | -11 -10 -10 ----------- Run | Yrd Mat Min Matter Collected 933 | 244 436 253 Remotely . | . . . Salvage Created 577 | 30 422 125 Parts 55 | 3 42 10 Haulers Intercepted 1 | . 1 . Recyclers Shooed . | . . . Parts Field Recycled . | . . . Retrieved Matter . | . . . Parts Self-Destructed . | . . . Prevented . | . . . Kills | -11 -10 -10 ------- Run | Yrd Mat Min Combat Hostiles Destroyed 15 | . 10 5 Guns 13 | . 10 3 Cannons 2 | . . 2 Classes Destroyed 7 | 1 6 . Builder 2 | . 2 . Tunneler 2 | 1 1 . Hauler 1 | . 1 . Recycler 1 | . 1 . Watcher 2 | . 2 . Swarmer 11 | . 8 3 Grunt 4 | . 2 2 Best Kill Streak 6 | 1 6 3 Combat Bots Only 3 | . 3 3 Max Kills in Single Turn 2 | 1 2 1 Gunslinging 1 | . 1 . Exploded . | . . . Melee . | . . . Uniques/NPCs Destroyed . | . . . Combat | -11 -10 -10 -------- Run | Yrd Mat Min Hostile Shots Fired 91 | . 45 46 Missed 20 | . 10 10 Damage Taken 1139 | . 335 804 Core 251 | . 71 180 Absorbed by Shields . | . . . Core Remaining (%) 100 | 100 . . Volleys Fired 82 | 3 65 14 Largest 2 | 1 2 2 Hottest 78 | 20 40 78 Shots Fired 137 | 3 105 29 Gun 129 | 3 105 21 Cannon 7 | . . 7 Launcher 1 | . . 1 Special . | . . . Kinetic 136 | 3 105 28 Thermal . | . . . Explosive 1 | . . 1 Electromagnetic . | . . . Robot Hit Streak 12 | 2 5 12 Robot Miss Streak 4 | 1 4 3 Penetration Max . | . . . Secondary Targets 1 | . 1 . Max Gunslinging Chain 1 | . 1 . Shots Hit Robots 77 | 2 55 20 Core Hits 36 | 1 25 10 Critical Kills 1 | . . 1 Critical Parts Destroyed . | . . . Critical Strikes 1 | . . 1 Destroy 1 | . . 1 Melee Attacks 6 | . 6 . Impact . | . . . Slashing 6 | . 6 . Piercing . | . . . Sneak Attacks . | . . . Combat Hostiles . | . . . Follow-up Attacks . | . . . Damage Inflicted 887 | 30 602 255 Guns 764 | 30 602 132 Cannons 104 | . . 104 Explosions 19 | . . 19 Melee . | . . . Ramming . | . . . Kinetic 868 | 30 602 236 Thermal . | . . . Explosive 19 | . . 19 Electromagnetic . | . . . Impact . | . . . Slashing . | . . . Piercing . | . . . Highest Corruption 2 | . 2 2 Average Corruption 2 | . 2 2 Corruption Purged . | . . . Corruption Blocked . | . . . Effects 8 | . . 8 Message Errors 4 | . . 4 Matter Fused 1 | . . 1 Heat Flow Errors 1 | . . 1 Data Loss (major) 1 | . . 1 Misfires 1 | . . 1 Overload Shots . | . . . Overflow Damage . | . . . Projectiles . | . . . Explosions . | . . . Melee . | . . . Knockbacks 1 | . . 1 Impact . | . . . Kinetic 1 | . . 1 Secondary . | . . . Self-Inflicted Damage 26 | . . 26 Shots 1 | . . 1 Rammed . | . . . Targets Rammed . | . . . Kicked . | . . . Crushed . | . . . Highest Temperature 268 | . 26 268 Average Temperature 26 | . 6 54 Received Heat Transfer 174 | . 48 126 Siege Activations . | . . . Robots Corrupted . | . . . Combat Hostiles . | . . . Parts Fried . | . . . Impact Corruptions . | . . . Robots Melted . | . . . Combat Hostiles . | . . . Parts Melted . | . . . Heat Transferred . | . . . Parts Sabotaged . | . . . Parts Stolen . | . . . Parts Stripped . | . . . Power Chain Reactions . | . . . Alert | -11 -10 -10 ------- Run | Yrd Mat Min Peak Influence 292 | 5 292 111 Initial 3 | . 3 . Average 54 | . 63 45 Maximum Alert Level 1 | . 1 . Low Security (%) 99 | 100 98 100 Level 1 . | . 1 . Level 2 . | . . . Level 3 . | . . . Level 4 . | . . . Level 5 . | . . . High Security . | . . . Max Security . | . . . Squads Dispatched 2 | . 1 1 Investigation 1 | . . 1 Extermination . | . . . Reinforcement 1 | . 1 . Assault . | . . . Garrison . | . . . Intercept . | . . . Searches Triggered . | . . . Construction Impeded . | . . . Haulers Reinforced . | . . . Active Scanning Responses . | . . . Cargo Convoy Interrupts . | . . . Stealth | -11 -10 -10 --------- Run | Yrd Mat Min Distress Signals 3 | . 3 . Communications Jammed . | . . . Distress Signals . | . . . Times Spotted 32 | . 18 14 Peak Tracking Total 6 | . 4 6 Tactical Retreats 3 | . 3 . Traps | -11 -10 -10 ------- Run | Yrd Mat Min Traps Triggered 4 | . 4 . Indirectly . | . . . Trap Hack Attempts . | . . . Triggered . | . . . Disarmed . | . . . Reprogrammed . | . . . Reused . | . . . Traps Extracted . | . . . Installed . | . . . Triggered . | . . . Machines | -11 -10 -10 ---------- Run | Yrd Mat Min Machines Disabled 1 | . 1 . Max in Single Turn 1 | . 1 . Machines Repaired . | . . . Machines Dismantled . | . . . Machines Sabotaged . | . . . Overloaded Fab Kills . | . . . Hacking | -11 -10 -10 --------- Run | Yrd Mat Min Machines Accessed 7 | . 5 2 Terminals 6 | . 5 1 Fabricators . | . . . Repair Stations . | . . . Recycling Units . | . . . Scanalyzers . | . . . Garrison Access . | . . . Total Hacks 14 | . 10 4 Successful 6 | . 5 1 Failed 8 | . 5 3 Catastrophic 1 | . 1 . Database Lockouts . | . . . Manual . | . . . Terminals 13 | . 10 3 Fabricators . | . . . Repair Stations . | . . . Recycling Units . | . . . Scanalyzers . | . . . Garrison Access . | . . . Terminal Hacks 6 | . 5 1 Record 2 | . 2 . Prototype ID Bank 1 | . 1 . Open Door 1 | . . 1 Security Status 1 | . 1 . Zone Layout 1 | . 1 . Fabricator Hacks . | . . . Repair Station Hacks . | . . . Recycling Unit Hacks . | . . . Scanalyzer . | . . . Garrison Access Hacks . | . . . Unauthorized Hacks . | . . . Terminals . | . . . Fabricators . | . . . Repair Stations . | . . . Recycling Units . | . . . Scanalyzers . | . . . Garrison Access . | . . . Data Cores Recovered . | . . . Used . | . . . Hacking Detections 5 | . 4 1 Full Trace Events 1 | . . 1 Feedback Events . | . . . Feedback Blocked . | . . . Robot Schematics Acquired . | . . . Robots Built . | . . . Authchips . | . . . Time . | . . . Total Robot Build Rating . | . . . Part Schematics Acquired . | . . . Parts Built . | . . . Authchips . | . . . Time . | . . . Total Part Build Rating . | . . . Parts Repaired . | . . . Time . | . . . Parts Recycled . | . . . Recycled Matter . | . . . Retrieved Matter . | . . . Retrieved Components . | . . . Parts Scanalyzed . | . . . Part Schematics Acquired . | . . . Parts Damaged . | . . . Bothacking | -11 -10 -10 ------------ Run | Yrd Mat Min Used RIF Installer . | . . . Robots Hacked . | . . . Non-combat . | . . . Combat . | . . . Robot Hacks Applied . | . . . Relay Couplers Released . | . . . Fabnet Peak Effective % . | . . . Robots Rewired . | . . . Allies Hacked . | . . . Hacks Repelled . | . . . Allies | -11 -10 -10 -------- Run | Yrd Mat Min Total Allies . | . . . Largest Group . | . . . Highest-Rated Group . | . . . Highest-Rated Ally . | . . . Total Orders . | . . . Ally Attacks . | . . . Total Damage . | . . . Kills . | . . . Allies Corrupted . | . . . Allies Melted . | . . . Intel | -11 -10 -10 ------- Run | Yrd Mat Min Robot Analysis Total . | . . . Derelict Logs Recovered 2 | . . 2 Drone Launches . | . . . Drone Recoveries . | . . . Exploration | -11 -10 -10 ------------- Run | Yrd Mat Min Turns Passed 2107 | 82 1312 713 Spaces Moved 900 | 45 553 302 Core 9 | 8 1 . Treads 541 | 37 294 210 Legs . | . . . Wheels 350 | . 258 92 Hover . | . . . Flight . | . . . Fastest Speed 50 | 50 145 130 Average Speed 179 | 140 166 209 Slowest Speed 320 | 160 240 320 Overloaded Moves . | . . . Propulsion Burnouts . | . . . Robots Hopped . | . . . Cave-ins Triggered . | . . . Exploration Rate (%) 36 | 4 55 51 Regions Visited 2 Branch Regions 1 Pre-discovered Areas 2 | . . 2 Known Exits Taken . | . . . Unknown Exits Taken 2 | 1 1 . Scrap Searched 1 | . . 1 Spaces Dug 2 | . 2 . Terrain Destroyed 8 | . 2 6 Melee 2 | . 2 . Projectile 2 | . . 2 AOE 4 | . . 4 Terrain Rammed . | . . . Walls Destroyed . | . . . Machines Disabled . | . . . Actions | -11 -10 -10 --------- Run | Yrd Mat Min Total 1254 | 61 836 357 Wait 195 | . 167 28 Move 898 | 44 552 302 Hop . | . . . Pick Up 36 | 8 24 4 Fast Attach . | . . . Attach 17 | 6 6 5 Detach . | . . . Swap 11 | . 7 4 Drop 9 | . 9 . Fire 82 | 3 65 14 Melee 6 | . 6 . Ram . | . . . Kick . | . . . Crush . | . . . Escape Stasis . | . . . Rewire . | . . . Trap . | . . . Miscellaneous . | . . . Route ------- -11/Scrapyard -10/Materials (discovered 3 exits: [*Mat] / *Min x2) -10/Mines (discovered 1 exit: [*Mat]) History --------- Turn | Location | Event 17 | -11/Scrapyard | Discovered new exit (range 16) 83 | -11/Scrapyard | Entered Materials 256 | -10/Materials | Discovered new exit (range 13) 307 | -10/Materials | Build established: Mutant 625 | -10/Materials | Discovered new exit (range 14) 1129 | -10/Materials | Discovered new exit (range 16) 1395 | -10/Materials | Entered Mines 1409 | -10/Mines | Met a Derelict bent on vengeance 1498 | -10/Mines | A weapon hastily lodged in a ceiling crevice suddenly fell to the ground 1725 | -10/Mines | Learned location of Zion (-6) 1747 | -10/Mines | Met a Derelict who couldn't figure out how to use a Trap Extractor 1825 | -10/Mines | Learned Materials emergency access door positions 2002 | -10/Mines | Discovered new exit (range 9) 2003 | -10/Mines | Learned location of Storage (-8) 2080 | -10/Mines | Assembled infested the area 2085 | -10/Mines | Assisted by a Guerilla fighting off Assembled 2099 | -10/Mines | Core integrity fell below 50% 2105 | -10/Mines | Core integrity fell below 20% 2108 | -10/Mines | Destroyed by D-53 Grenadier with Mini Grenade Launcher Last Messages --------------- come on!" System corrupted: Heat flow error (+286). L3-3M1(h) system corrupted by crushing effect. L3-3M1(h) knocked back. as-66660 destroyed. L3-3M1(h) destroyed. C-30 ARC bursts open, deploying its payload. D-53 Grenadier unfolds itself. Lgt. Assault Rifle destroyed. Seismic Detector destroyed. as-04606 destroyed. Lgt. Treads destroyed. as-87685 destroyed. Lgt. Treads destroyed. as-15138 destroyed. as-89927 destroyed. The unstable cave ceiling collapses. D-53 Grenadier knocked back. Lgt. Armor Plating destroyed. The unstable cave ceiling collapses. Map ----- +----------------------------------------------------+ | | | | | | | | | | | | | | | | | | | | | | | | | | | | | | | | | | | | | ?????????????????????????#?#????????##???????????? | | ??????????????#######??## # ####?# #???????????? | | ?????????????## #### # #???????????? | | ?????????????# ## = #???????????? | | ????????####?# *%= #???????????? | | ???????## ### d %% #???????????? | | ????#### ## d # #?? #??????????? | | ??### #?# < # @ #??? #?????????? | | ?## #?# ## #???# #????????? | | ?# #?# ## ##???? #???????? | | ?# #??## #### ##?????? ??????? | | ??# #???## #??# ??????# ?????? | | ??#### #????# #### ##### ??????# #???? | | ?????## ##???# #???? """ ??????# ???? | | ??????# ##### ######???? """ %?????? ### ????? | | ?????## #????????? """ % ??????#???????? | | ?????# #### #????????? ??% #?????????????? | | ?????# #??# ???????##???????????????????? | | ?????# #??#### ????????????????????????????? | | ?????## ##?????? #???????????????????????????? | | ?????### ##??????? ????????????????????????????? | | ???????### #???????? ????????????????????????????? | | ?????????# #???????? ????????????????????????????? | | ?????????# ###?????? ????????????????????????????? | | ?????????# #?????# #???????????????????????????? | | ?????????### ###???# #???????????????????????????? | | ???????????# #???# #???????????????????????????? | | ???????????### #???# #??####?????????????????????? | | ?????????????# #???# #??# ??????????????????????? | | ?????????????# #???# #??# #??????????????????????? | | ?????????????# #???# #### ###????????????????????? | | ???????????### ##### #????????????????????? | +----------------------------------------------------+ Best States ------------- Heat Dissipation 25 Energy Generation 10 Energy Capacity 250 Matter Stores 300 Matter Capacity 300 Sight Range 16 Terrain Scan Density 10 Armor Coverage 150 Evasion (%) 40 Recoil Reduction 2 Item Schematics ----------------- None Robot Schematics ------------------ None Fabricated ------------ Nothing Alien Tech Used ----------------- None Achievements -------------- None Challenges ------------ None Game ------ Seed AlphaAntimissileSlayer Manual? 0 Play Time 00:13:52 Cumulative 20.3 hours Start 2024.04.19 @ 22:34:37 End 2024.04.19 @ 22:47:58 Sessions 1 Manual Loads 0 Difficulty Rogue Special Mode None Game No. 29 Rogue 28 Adventurer 1 Explorer 0 Win Type - Total 0 Types 0/0/0/0/0/0/0/0/0 Lore% 17 Gallery% 27 Achievement% 22 Wizard Run 0 Options --------- Layout 1 ASCII 0 Keyboard 0 Movement Mouse Keybinds 0 Fullscreen 1 Font 24/Smallcaps Map View 50x40 Zoom Use 0% Tactical HUD 0 Map Filters NONE Filters NONE Steam 1 RUN: 5987ec49-d2fd-42a4-9810-66576b458d16